bitfinex/quotes_ETHUSD_20220115
["timestamp","ask_amount","ask_price","bid_price","bid_amount"]
[1642262980456,11.22639862,3359.5,3359.4,2.57389516]
[1642262981453,11.22639862,3359.5,3359.4,0.02748568]
[1642262981854,12.00339862,3359.5,3359.4,0.00919507]
[1642262982457,12.00339862,3359.5,3359.4,2.55560455]
[1642262983253,12.00339862,3359.5,3359.4,0.00919507]
[1642262985090,12.78039862,3359.5,3359.4,0.00919507]
[1642262986592,12.78039862,3359.5,3359.4,0.01959309]
[1642262988239,13.55739862,3359.5,3359.4,0.01959309]
[1642262988637,12.2585755,3359.5,3359.4,0.01959309]
[1642262990537,12.2585755,3359.5,3359.4,2.56554276]
[1642262991395,13.0355755,3359.5,3359.4,2.56554276]
[1642262994188,13.0355755,3359.5,3359.4,0.01959309]
[1642262994590,13.8125755,3359.5,3359.4,0.01959309]
[1642262996038,13.8125755,3359.5,3359.4,2.56565172]
[1642262997734,14.5895755,3359.5,3359.4,2.56565172]
[1642262998134,16.11584898,3359.5,3359.4,2.56565172]
[1642262998783,14.5895755,3359.5,3359.4,2.46565172]
[1642262999785,15.84536706,3359.5,3359.4,2.46565172]
[1642263000184,15.84536706,3359.5,3359.0,1.42814619]
[1642263000585,15.84536706,3359.5,3359.1,0.00227369]
[1642263000987,0.045463,3359.2,3359.1,0.00227369]
[1642263001189,0.045463,3359.4,3359.1,0.00227369]
[1642263001886,16.62236706,3359.5,3359.1,0.00227369]
[1642263002085,0.045463,3359.3,3359.1,0.00227369]
[1642263003134,16.62236706,3359.5,3359.1,0.00227369]
[1642263003135,16.66783006,3359.5,3359.1,0.00227369]
[1642263004036,16.66783006,3359.5,3359.2,0.02419251]
[1642263004037,15.4120385,3359.5,3359.2,0.02419251]
[1642263004237,16.1890385,3359.5,3359.2,0.02419251]
[1642263004437,16.1890385,3359.5,3359.3,0.00113685]
[1642263006684,3.08954639,3359.4,3359.3,0.00113685]
[1642263007083,3.09834098,3359.4,3359.3,0.00113685]
[1642263007282,1.16408056,3359.4,3359.3,0.00113685]
[1642263007482,1.94108056,3359.4,3359.3,0.00113685]
[1642263008892,0.777,3359.4,3359.2,0.00170527]
[1642263010136,0.777,3359.4,3359.3,1.4833588]
[1642263010334,0.777,3359.4,3359.2,0.00170527]
[1642263010534,0.777,3359.4,3359.3,0.00113685]
[1642263010734,1.554,3359.4,3359.3,0.00113685]
[1642263011336,1.599463,3359.4,3359.3,0.00113685]
[1642263011734,1.59153204,3359.4,3359.3,0.00113685]
[1642263012235,1.54606904,3359.4,3359.3,0.00113685]
[1642263013498,3.4551171,3359.4,3359.3,0.00113685]
[1642263013889,4.2321171,3359.4,3359.3,0.00113685]
[1642263015292,4.1914091,3359.4,3359.3,0.00113685]
[1642263016192,8.8414091,3359.4,3359.3,0.00113685]
[1642263016392,8.8414091,3359.4,3358.5,0.00568424]
[1642263016600,0.045463,3359.1,3358.6,11.2]
[1642263016797,16.1435755,3359.5,3358.6,11.2]
[1642263016798,16.1435755,3359.5,3358.9,0.01221672]
[1642263016998,10.77004088,3359.5,3359.1,0.06098505]
[1642263017235,10.77004088,3359.5,3359.4,0.01260299]
[1642263017437,10.77004088,3359.5,3359.2,0.00170527]
[1642263017638,10.77004088,3359.5,3359.3,1.3243191]
[1642263017836,10.77004088,3359.5,3359.3,2.4715206]
[1642263020236,10.77004088,3359.5,3359.4,2.54608745]
[1642263020237,11.54704088,3359.5,3359.4,2.54608745]
[1642263023388,12.32404088,3359.5,3359.4,2.54608745]
[1642263025440,12.36950388,3359.5,3359.4,2.54608745]
[1642263026741,13.10104088,3359.5,3359.4,2.54608745]
[1642263027838,14.61675252,3359.5,3359.4,2.54608745]
[1642263029185,13.10104088,3359.5,3359.4,2.54608745]
[1642263029990,13.87804088,3359.5,3359.4,2.54608745]
[1642263030589,15.01012743,3359.5,3359.4,2.54608745]
[1642263031789,13.87804088,3359.5,3359.4,2.54608745]
[1642263033549,14.65504088,3359.5,3359.4,2.54608745]
[1642263036687,15.43204088,3359.5,3359.4,2.54608745]
[1642263037695,15.43204088,3359.5,3359.3,2.54608745]
[1642263038895,0.045463,3359.4,3359.3,2.54608745]
[1642263039295,0.045463,3359.4,3359.3,2.5472243]
[1642263039494,1.60475584,3359.4,3359.3,2.5472243]
[1642263039943,2.38175584,3359.4,3359.3,0.00113685]
[1642263040337,2.38175584,3359.4,3358.9,0.00341054]
[1642263040538,0.822463,3359.4,3358.9,0.00341054]
[1642263040737,0.822463,3359.4,3359.0,0.01901326]
[1642263040939,0.045463,3359.3,3358.9,0.00341054]
[1642263041240,0.777,3359.4,3358.9,0.00341054]
[1642263041440,0.777,3359.4,3359.2,0.02064336]
[1642263041639,0.045463,3359.3,3358.9,0.00341054]
[1642263041939,0.045463,3359.3,3359.1,2.54608745]
[1642263042139,0.777,3359.4,3359.1,2.54608745]
[1642263042340,0.777,3359.4,3359.2,0.00170527]
[1642263042341,0.822463,3359.4,3359.2,0.00170527]
[1642263042940,0.822463,3359.4,3359.1,0.00227369]
[1642263043139,1.599463,3359.4,3359.1,0.00227369]
[1642263043788,1.599463,3359.4,3358.7,0.00454739]
[1642263043989,1.554,3359.4,3358.7,0.00454739]
[1642263044187,1.554,3359.4,3359.1,2.54608745]
[1642263044788,1.554,3359.4,3358.8,2.54608745]
[1642263044989,1.554,3359.4,3359.2,2.50477285]
[1642263045195,1.599463,3359.4,3359.2,1.36614316]
[1642263045390,1.599463,3359.4,3359.3,0.00113685]
[1642263046589,2.376463,3359.4,3359.3,0.00113685]
[1642263046788,2.376463,3359.4,3359.2,1.50634919]
[1642263046988,2.376463,3359.4,3359.3,0.00113685]
[1642263047440,2.331,3359.4,3359.3,0.00113685]
[1642263048240,2.331,3359.4,3359.3,2.5472243]
[1642263049843,3.108,3359.4,3359.3,2.5472243]
[1642263050242,4.454279,3359.4,3359.3,2.5472243]
[1642263050642,3.108,3359.4,3359.3,0.00113685]
[1642263051088,3.108,3359.4,3358.9,0.00341054]
[1642263051295,3.108,3359.4,3359.3,2.54608745]
[1642263051688,3.108,3359.4,3359.3,2.5472243]
[1642263052288,3.108,3359.4,3359.3,0.00113685]
[1642263052691,3.108,3359.4,3358.9,0.00341054]
[1642263053095,3.885,3359.4,3358.9,2.54949799]
[1642263053490,3.885,3359.4,3359.0,0.00284212]
[1642263054090,3.885,3359.4,3358.9,0.00341054]
[1642263054491,3.885,3359.4,3358.9,2.54949799]
[1642263054935,3.885,3359.4,3359.0,0.00284212]
[1642263055338,3.885,3359.4,3359.1,0.02073401]
[1642263055536,3.885,3359.4,3359.0,0.00284212]
[1642263055936,3.885,3359.4,3359.2,2.54608745]
[1642263056137,0.045463,3359.3,3359.2,2.54608745]
[1642263056338,4.662,3359.4,3359.3,0.00113685]
[1642263056938,4.662,3359.4,3359.0,0.00284212]
[1642263057739,1.26639868,3359.1,3359.0,0.00284212]
[1642263057938,4.662,3359.4,3358.9,0.00341054]
[1642263058138,4.662,3359.4,3359.0,0.01743808]
[1642263058343,4.662,3359.4,3358.9,0.00341054]
[1642263058588,4.662,3359.4,3359.1,0.00227369]
[1642263058789,4.662,3359.4,3359.3,1.35432432]
[1642263058992,5.99478919,3359.4,3359.3,1.35432432]
[1642263059189,5.99478919,3359.4,3359.3,1.35546117]
[1642263059590,6.77178919,3359.4,3359.3,1.35546117]
[1642263059790,5.439,3359.4,3359.3,3.90154862]
[1642263060391,5.439,3359.4,3359.3,2.5472243]
[1642263061590,6.6364504,3359.4,3359.3,1.39962553]
[1642263062539,6.6819134,3359.4,3359.3,3.94571298]
[1642263062737,7.4134504,3359.4,3359.3,3.94571298]
[1642263063137,7.4134504,3359.4,3359.3,1.39962553]
[1642263063942,6.216,3359.4,3359.3,3.94571298]
[1642263064441,6.216,3359.4,3359.3,6.15057409]
[1642263064643,6.216,3359.4,3359.3,6.19466986]
[1642263064946,6.216,3359.4,3359.3,6.62366986]
[1642263065144,6.216,3359.4,3359.3,7.83767344]
[1642263065745,6.216,3359.4,3359.3,11.48767344]
[1642263065997,6.993,3359.4,3359.3,7.83767344]
[1642263066892,6.83564638,3359.4,3359.3,7.83767344]
[1642263067991,6.83564638,3359.4,3359.3,7.78767344]
[1642263069198,1.66095638,3359.4,3359.3,14.78767344]
[1642263069500,1.66095638,3359.4,3359.3,7.79984987]
[1642263069738,1.66095638,3359.4,3359.3,5.55089299]
[1642263070540,1.66095638,3359.4,3359.3,9.95089299]
[1642263071946,15.46204088,3359.5,3359.4,6.4]
[1642263072141,15.46204088,3359.5,3359.4,6.829]
[1642263072344,16.21017773,3359.5,3359.4,6.829]
[1642263072546,10.25872773,3359.5,3359.4,10.379]
[1642263072943,4.30733773,3359.5,3359.4,12.379]
[1642263073143,0.23651664,3359.5,3359.4,29.769]
[1642263073346,3.885,3359.6,3359.5,16.74385]
[1642263073590,0.777,3360.6,3360.0,0.7438395]
[1642263073790,0.777,3360.6,3360.1,2.7029589]
[1642263073996,0.00568423,3360.5,3360.2,1.4170197]
[1642263074189,0.00568423,3360.5,3360.3,2.02614485]
[1642263074490,0.00511581,3360.4,3360.3,3.25194726]
[1642263075090,0.00511581,3360.4,3360.3,3.12080393]
[1642263075288,0.00511581,3360.4,3360.3,1.22580241]
[1642263075489,0.78211581,3360.4,3360.3,4.28213295]
[1642263075688,0.78211581,3360.4,3360.3,2.39861281]
[1642263075890,0.78211581,3360.4,3360.3,6.85676056]
[1642263076496,0.822463,3361.0,3360.4,3.75]
[1642263076693,0.822463,3361.0,3360.5,2.63595713]
[1642263076694,0.777,3361.0,3360.5,2.63595713]
[1642263076990,0.00284212,3360.9,3360.5,2.63595713]
[1642263077245,0.00284212,3360.9,3360.5,4.63595713]
[1642263077444,0.00227369,3360.8,3360.5,2.63595713]
[1642263077643,0.00227369,3360.8,3360.7,0.74374]
[1642263077843,0.777,3361.0,3360.7,3.08567532]
[1642263078043,0.777,3361.0,3360.8,1.48828554]
[1642263078245,0.00284212,3360.9,3360.8,1.48828554]
[1642263078443,0.00284212,3360.9,3360.8,1.91728554]
[1642263078644,0.77984212,3360.9,3360.8,1.91728554]
[1642263079049,0.77984212,3360.9,3360.8,3.78790425]
[1642263080445,0.70933777,3360.9,3360.8,3.78790425]
[1642263080650,2.95230537,3361.1,3360.8,3.78790425]
[1642263080847,1.554,3361.1,3360.9,2.02964701]
[1642263081096,1.22274684,3361.1,3361.0,2.53624975]
[1642263081495,1.22388368,3361.1,3361.0,3.62440368]
[1642263081699,1.17388368,3361.1,3361.0,3.62440368]
[1642263081893,1.95088368,3361.1,3361.0,3.62440368]
[1642263082493,0.777,3361.4,3361.0,6.16938249]
[1642263082694,0.777,3361.4,3361.1,0.76785155]
[1642263082897,0.00113685,3361.3,3361.2,2.36440819]
[1642263084750,0.777,3361.4,3361.2,5.65269608]
[1642263084949,0.777,3361.4,3361.3,1.96598855]
[1642263085151,1.554,3361.4,3361.3,0.429]
[1642263085752,1.554,3361.4,3361.3,2.97377869]
[1642263086152,1.554,3361.4,3361.3,2.54477869]
[1642263086350,1.599463,3361.4,3361.3,2.54477869]
[1642263086551,1.599463,3361.4,3361.2,2.3332558]
[1642263087254,1.554,3361.4,3361.2,2.3332558]
[1642263088495,2.331,3361.4,3361.2,2.3332558]
[1642263089189,2.331,3361.4,3361.2,4.6965116]
[1642263091595,3.108,3361.4,3361.2,5.4401516]
[1642263092252,3.06422806,3361.4,3361.2,5.4401516]
[1642263092447,2.73636523,3361.4,3361.3,5.679]
[1642263093044,2.73636523,3361.4,3361.3,2.97380973]
[1642263094248,2.73636523,3361.4,3361.3,20.36380973]
[1642263094448,2.68636523,3361.4,3361.3,22.36380973]
[1642263094644,2.68636523,3361.4,3361.3,22.43686276]
[1642263094852,3.46336523,3361.4,3361.3,22.43686276]
[1642263095246,3.46336523,3361.4,3361.3,22.36380973]
[1642263095647,3.46336523,3361.4,3361.3,4.97380973]
[1642263096094,3.46336523,3361.4,3361.3,8.79110443]
[1642263096893,3.46336523,3361.4,3361.3,2.97380973]
[1642263097096,3.46336523,3361.4,3361.3,6.92520078]
[1642263097293,3.3875633,3361.4,3361.3,6.92520078]
[1642263097796,0.045463,3361.6,3361.3,10.74249548]
[1642263097994,0.045463,3361.6,3361.4,0.44147379]
[1642263098194,11.655,3361.7,3361.6,2.46230899]
[1642263098394,11.655,3361.7,3361.6,4.89130899]
[1642263099194,11.655,3361.7,3361.6,9.30918851]
[1642263101239,12.432,3361.7,3361.6,9.30918851]
[1642263103242,12.432,3361.7,3361.6,5.43611872]
[1642263103504,12.432,3361.7,3361.6,5.00711872]
[1642263104595,13.209,3361.7,3361.6,5.00711872]
[1642263106596,13.209,3361.7,3361.6,7.39357233]
[1642263106796,13.209,3361.7,3361.6,6.13150934]
[1642263106997,13.209,3361.7,3361.6,2.95893934]
[1642263107642,13.986,3361.7,3361.6,2.95893934]
[1642263108344,13.986,3361.7,3361.6,4.07657553]
[1642263109544,12.88819248,3361.7,3361.6,11.07657553]
[1642263109747,12.83819248,3361.7,3361.6,5.99257553]
[1642263109944,12.83819248,3361.7,3361.6,7.99257553]
[1642263110845,12.83819248,3361.7,3361.6,4.07657553]
[1642263110846,13.61519248,3361.7,3361.6,4.07657553]
[1642263111096,9.58971306,3361.7,3361.6,4.07657553]
[1642263111295,9.54425006,3361.7,3361.6,4.07657553]
[1642263112697,9.54425006,3361.7,3361.6,13.41830285]
[1642263112698,7.3900548,3361.7,3361.6,13.41830285]
[1642263112903,1.4426248,3361.7,3361.6,8.09730285]
[1642263113102,1.4426248,3361.7,3361.6,9.09730285]
[1642263113304,1.4426248,3361.7,3361.6,8.09730285]
[1642263113498,0.045463,3362.0,3361.6,8.09730285]
[1642263113698,0.045463,3362.1,3361.9,0.41412961]
[1642263113898,0.045463,3362.1,3361.6,5.57847592]
[1642263113899,0.777,3362.1,3362.0,2.81613245]
[1642263114098,0.777,3362.1,3362.0,0.84312961]
[1642263114300,0.777,3362.1,3362.0,0.41412961]
[1642263114301,0.82701039,3362.1,3362.0,0.41412961]
[1642263114743,0.78154739,3362.1,3362.0,2.95893934]
[1642263115444,2.13341971,3362.1,3362.0,2.95893934]
[1642263117244,2.91041971,3362.1,3362.0,2.95893934]
[1642263118147,2.95588271,3362.1,3362.0,2.95893934]
[1642263118352,2.95588271,3362.1,3362.0,3.934e-05]
[1642263118594,1.60401039,3362.1,3362.0,3.934e-05]
[1642263118890,1.60401039,3362.1,3361.4,0.03]
[1642263119093,1.55854739,3362.1,3361.9,0.03]
[1642263119290,0.00397897,3362.0,3361.9,0.03]
[1642263119791,0.04944197,3362.0,3361.9,0.03]
[1642263120497,0.82644197,3362.0,3361.9,0.03]
[1642263121292,0.82644197,3362.0,3361.8,1.47433787]
[1642263121692,0.00341054,3361.9,3361.8,1.47433787]
[1642263121892,0.00341054,3361.9,3361.4,0.74361]
[1642263122344,0.00284212,3361.8,3361.4,0.74361]
[1642263122741,0.0022737,3361.7,3361.1,2.429]
[1642263122941,0.0022737,3361.7,3361.1,0.429]
[1642263123142,0.00170527,3361.6,3361.1,0.429]
[1642263123343,1.42247858,3361.4,3361.1,0.429]
[1642263123744,1.39356515,3361.3,3361.1,0.429]
[1642263126814,2.17056515,3361.3,3361.1,0.429]
[1642263128009,2.21602815,3361.3,3361.1,0.429]
[1642263128211,2.17056515,3361.3,3361.1,0.429]
[1642263128411,2.17056515,3361.3,3360.8,2.0]
[1642263128613,0.045463,3361.2,3360.8,2.0]
[1642263128817,0.045463,3361.2,3360.9,0.00227369]
[1642263129611,2.17056515,3361.3,3360.9,0.00227369]
[1642263129842,2.21602815,3361.3,3360.9,1.12788662]
[1642263130043,2.94756515,3361.3,3360.9,0.00227369]
[1642263130243,2.94756515,3361.3,3361.0,0.00170527]
[1642263130442,2.99302815,3361.3,3361.0,0.00170527]
[1642263131545,2.94756515,3361.3,3361.0,0.00170527]
[1642263131744,2.94756515,3361.3,3361.1,1.48369712]
[1642263133145,2.94756515,3361.3,3361.0,0.00170527]
[1642263133343,0.02843511,3361.2,3361.0,0.00170527]
[1642263134195,3.72456515,3361.3,3361.0,0.00170527]
[1642263135600,0.045463,3361.1,3361.0,0.00170527]
[1642263135796,0.00360599,3361.2,3361.0,0.00170527]
[1642263135797,0.045463,3361.2,3361.0,0.00170527]
[1642263135997,3.72456515,3361.3,3361.0,0.00170527]
[1642263136197,0.045463,3361.1,3360.6,0.00397896]
[1642263136398,3.72456515,3361.3,3360.6,0.00397896]
[1642263136603,0.777,3361.1,3360.6,0.00397896]
[1642263137349,0.045463,3361.0,3360.6,0.00397896]
[1642263137954,0.822463,3361.1,3360.6,0.00397896]
[1642263139156,0.777,3361.1,3360.6,0.00397896]
[1642263139348,0.777,3361.1,3360.7,2.0]
[1642263139848,1.554,3361.1,3360.8,0.00284212]
[1642263140149,1.554,3361.1,3360.8,0.74659212]
[1642263141193,1.554,3361.1,3360.8,0.24659212]
[1642263141396,0.00113685,3361.0,3360.8,0.24659212]
[1642263141803,0.00113685,3361.0,3360.7,2.429]
[1642263142195,0.00113685,3361.0,3360.8,1.90073755]
[1642263142396,0.00113685,3361.0,3360.8,1.88929889]
[1642263142796,0.00113685,3361.0,3360.7,2.429]
[1642263142997,0.045463,3360.8,3360.7,2.429]
[1642263143196,0.77813685,3361.0,3360.7,2.429]
[1642263143397,0.045463,3360.9,3360.5,0.74381]
[1642263143597,1.35060616,3360.8,3360.3,0.429]
[1642263143801,1.21541855,3360.7,3360.6,0.00113684]
[1642263144002,3.21541855,3360.7,3360.6,0.00113684]
[1642263144203,3.26088155,3360.7,3360.6,0.00113684]
[1642263144404,1.26088155,3360.7,3360.3,0.00284211]
[1642263144599,0.045463,3360.4,3360.3,0.00284211]
[1642263146145,0.822463,3360.4,3360.3,0.00284211]
[1642263146549,0.822463,3360.4,3359.7,0.00625265]
[1642263146850,0.045463,3360.1,3359.7,0.00625265]
[1642263147848,2.47257604,3360.0,3359.7,0.00625265]
[1642263148691,0.045463,3360.2,3359.7,0.00625265]
[1642263149293,0.822463,3360.2,3359.7,0.00625265]
[1642263149492,1.53735018,3360.1,3359.7,0.00625265]
[1642263150694,1.53735018,3360.1,3359.6,0.70026265]
[1642263150893,0.00170527,3360.0,3359.6,0.70026265]
[1642263151295,0.00113684,3359.9,3359.6,0.70026265]
[1642263151695,0.00170527,3360.0,3359.6,0.70026265]
[1642263152095,1.53735018,3360.1,3359.6,0.70026265]
[1642263152096,0.00113684,3359.9,3359.6,0.70026265]
[1642263152543,0.777,3359.9,3359.6,0.70026265]
[1642263154954,0.777,3359.9,3359.7,0.02005329]
[1642263155147,0.777,3359.9,3359.6,0.70026265]
[1642263155994,1.554,3359.9,3359.6,0.70026265]
[1642263159197,2.331,3359.9,3359.6,0.70026265]
[1642263159399,2.331,3359.9,3359.7,2.54520246]
[1642263160645,0.045463,3359.8,3359.7,2.54520246]
[1642263161846,2.331,3359.9,3359.6,2.26064941]
[1642263162445,3.108,3359.9,3359.6,2.26064941]
[1642263162852,3.108,3359.9,3359.7,4.06183187]
[1642263163507,3.108,3359.9,3359.8,8.18948725]
[1642263163806,3.108,3359.9,3359.8,4.70002666]
[1642263163807,3.10913684,3359.9,3359.8,4.70002666]
[1642263164505,3.10913684,3359.9,3359.8,9.42859971]
[1642263164712,0.777,3360.4,3360.2,5.5]
[1642263164909,0.0001,3360.4,3360.3,2.44162761]
[1642263165106,1.554,3361.1,3360.3,2.44162761]
[1642263165107,1.554,3361.1,3360.3,1.18528761]
[1642263165308,1.554,3361.1,3360.9,0.045463]
[1642263165708,2.66774268,3361.0,3360.9,0.045463]
[1642263166507,2.66774268,3361.0,3360.9,0.789193]
[1642263167107,2.66774268,3361.0,3360.9,3.33439546]
[1642263167576,2.60874268,3361.0,3360.9,2.54520246]
[1642263167777,3.8806943,3361.0,3360.9,2.54520246]
[1642263167977,3.8806943,3361.0,3360.9,3.28892246]
[1642263168880,4.6576943,3361.0,3360.9,3.28892246]
[1642263170279,4.6576943,3361.0,3360.9,2.54520246]
[1642263172109,5.4346943,3361.0,3360.8,2.54520246]
[1642263172508,0.00568424,3360.9,3360.8,2.54520246]
[1642263173510,0.05114724,3360.9,3360.8,2.54520246]
[1642263173910,0.05114724,3360.9,3360.5,1.51095521]
[1642263174130,0.045463,3360.6,3360.5,1.51095521]
[1642263174310,5.4346943,3361.0,3360.5,1.51095521]
[1642263174311,0.05057881,3360.8,3360.5,1.51095521]
[1642263174510,0.00397897,3360.6,3360.5,1.51095521]
[1642263174756,0.05001039,3360.7,3360.5,1.51095521]
[1642263174956,0.04944197,3360.6,3360.3,1.48757]
[1642263175153,0.00397897,3360.6,3360.3,1.48757]
[1642263175352,1.50679669,3360.4,3360.3,1.48757]
[1642263175753,1.50963881,3360.4,3360.3,1.48757]
[1642263176354,2.73463222,3360.4,3360.3,1.48757]
[1642263176755,2.73463222,3360.4,3360.1,1.51095521]
[1642263176957,0.045463,3360.2,3360.1,1.51095521]
[1642263177153,0.045463,3360.2,3359.9,2.26643281]
[1642263177354,0.045463,3360.0,3359.9,2.26643281]
[1642263178160,0.04659985,3360.1,3359.9,2.26643281]
[1642263178357,0.04659985,3360.1,3359.6,6.11793281]
[1642263178613,0.82359985,3360.1,3359.6,2.26643281]
[1642263178809,0.82359985,3360.1,3359.7,0.00113684]
[1642263179211,0.77813685,3360.1,3359.7,0.00113684]
[1642263179810,0.77813685,3360.1,3359.6,0.00170527]
[1642263180211,0.77813685,3360.1,3359.9,1.2825288]
[1642263181811,0.045463,3360.3,3360.1,0.77927369]
[1642263182010,0.045463,3360.3,3359.9,1.2825288]
[1642263182452,1.22499341,3360.4,3359.9,3.20625243]
[1642263182653,1.22499341,3360.4,3359.9,3.18573966]
[1642263182851,0.00113685,3360.3,3359.9,1.2825288]
[1642263183053,0.00113685,3360.3,3359.9,3.14496504]
[1642263183458,0.00113685,3360.3,3360.0,0.429]
[1642263184656,0.00113685,3360.3,3360.2,3.02191042]
[1642263184954,0.00113685,3360.3,3360.2,3.76581042]
[1642263185154,2.28630129,3360.3,3360.2,3.76581042]
[1642263185555,0.77813685,3360.3,3360.2,3.76581042]
[1642263186202,0.77813685,3360.3,3360.2,0.7439]
[1642263188005,0.77813685,3360.3,3360.2,3.7979614]
[1642263188203,1.55513685,3360.3,3360.2,5.68007274]
[1642263188605,1.55513685,3360.3,3360.2,2.62601134]
[1642263189407,1.55513685,3360.3,3360.2,0.7439]
[1642263189606,1.50513685,3360.3,3360.2,0.7439]
[1642263190254,1.50513685,3360.3,3360.2,2.60873648]
[1642263191457,2.28213685,3360.3,3360.2,2.60873648]
[1642263192657,2.28213685,3360.3,3360.2,0.7439]
[1642263193156,2.28213685,3360.3,3360.2,2.60235697]
[1642263193358,2.28213685,3360.3,3360.2,3.03135697]
[1642263193610,0.777,3360.6,3360.3,18.13371]
[1642263193807,0.777,3360.6,3360.4,2.63631707]
[1642263194006,0.777,3360.6,3360.5,1.94605221]
[1642263194212,0.777,3360.6,3360.5,2.4485184]
[1642263194406,2.20820597,3360.6,3360.5,2.4485184]
[1642263194610,2.98520597,3360.6,3360.5,3.72589942]
[1642263194809,2.98520597,3360.6,3360.5,6.27079382]
[1642263196010,2.98520597,3360.6,3360.5,10.0875679]
[1642263197554,1.43218752,3360.7,3360.6,2.2310956]
[1642263197754,1.43218752,3360.7,3360.6,4.60992258]
[1642263198756,0.00170527,3360.9,3360.6,4.60992258]
[1642263199057,1.22207237,3360.8,3360.7,17.39]
[1642263199255,1.22207237,3360.8,3360.7,17.819]
[1642263199459,1.554,3361.1,3360.7,17.819]
[1642263199656,1.554,3361.1,3360.8,1.99804941]
[1642263199854,1.554,3361.1,3360.9,0.429]
[1642263200056,1.554,3361.1,3360.9,2.34181809]
[1642263200262,3.05013685,3361.0,3360.9,2.34181809]
[1642263200656,3.05013685,3361.0,3360.9,3.08543809]
[1642263200856,3.82713685,3361.0,3360.9,9.44710657]
[1642263201109,3.82713685,3361.0,3360.9,7.53428848]
[1642263202009,3.82713685,3361.0,3360.9,9.40763004]
[1642263202205,3.82713685,3361.0,3360.9,26.79763004]
[1642263202505,3.82713685,3361.0,3360.9,24.92428848]
[1642263203304,3.82713685,3361.0,3360.9,26.17819219]
[1642263204106,4.60413685,3361.0,3360.9,26.17819219]
[1642263204853,4.60413685,3361.0,3360.9,8.78819219]
[1642263205053,4.60413685,3361.0,3360.9,7.53428848]
[1642263205654,4.60413685,3361.0,3360.9,9.4687198]
[1642263206155,4.60413685,3361.0,3360.9,5.65194572]
[1642263206353,4.60413685,3361.0,3360.9,6.76972775]
[1642263207261,5.38113685,3361.0,3360.9,3.7175144]
[1642263208807,5.38113685,3361.0,3360.9,7.52409053]
[1642263209307,5.38113685,3361.0,3360.9,7.47409053]
[1642263209706,5.38113685,3361.0,3360.9,3.6675144]
[1642263210607,6.15813685,3361.0,3360.9,3.6675144]
[1642263211008,6.20359985,3361.0,3360.9,3.6675144]
[1642263211208,6.15813685,3361.0,3360.9,3.6675144]
[1642263212857,6.15813685,3361.0,3360.9,7.47409053]
[1642263212858,2.08706826,3361.0,3360.9,7.47409053]
[1642263213657,2.08706826,3361.0,3360.9,3.6675144]
[1642263213857,2.86406826,3361.0,3360.9,3.6675144]
[1642263217006,3.64106826,3361.0,3360.9,2.5448944]
[1642263217208,3.68653126,3361.0,3360.9,2.5448944]
[1642263217408,5.55224554,3361.0,3360.9,2.5448944]
[1642263217611,3.68653126,3361.0,3360.9,2.5448944]
[1642263218207,3.68653126,3361.0,3360.6,3.80657613]
[1642263218406,3.64106826,3361.0,3360.6,3.80657613]
[1642263218607,1.51415401,3360.7,3360.6,3.80657613]
[1642263219005,1.51415401,3360.7,3360.6,3.80884982]
[1642263220262,2.29115401,3360.7,3360.6,3.80884982]
[1642263221756,2.33661701,3360.7,3360.6,3.80884982]
[1642263221961,2.29115401,3360.7,3360.6,0.00227369]
[1642263222156,2.33661701,3360.7,3360.6,0.00227369]
[1642263222356,2.29115401,3360.7,3360.6,0.00227369]
[1642263222557,0.777,3360.7,3360.6,2.54716809]
[1642263223157,2.02570639,3360.7,3360.6,2.54716809]
[1642263223357,0.777,3360.7,3360.6,0.00227369]
[1642263223605,1.554,3360.7,3360.6,0.00227369]
[1642263223811,1.554,3360.7,3360.6,2.54716809]
[1642263224213,1.599463,3360.7,3360.6,2.54716809]
[1642263224506,1.554,3360.7,3360.6,2.54716809]
[1642263224706,1.554,3360.7,3360.6,0.00227369]
[1642263226106,1.36373069,3360.7,3360.6,0.00227369]
[1642263226304,1.36373069,3360.7,3360.6,1.45725151]
[1642263226707,2.14073069,3360.7,3360.6,0.00227369]
[1642263227110,2.14073069,3360.7,3360.6,3.05595695]
[1642263227761,2.14073069,3360.7,3360.6,0.00227369]
[1642263228162,2.14073069,3360.7,3360.5,1.49032212]
[1642263228460,2.14073069,3360.7,3360.6,2.5448944]
[1642263228661,3.64106826,3361.0,3360.7,0.7437213]
[1642263228860,3.64106826,3361.0,3360.7,2.20794898]
[1642263229061,1.25598004,3360.8,3360.7,1.46422768]
[1642263229260,1.25598004,3360.8,3360.6,2.5448944]
[1642263229461,1.25598004,3360.8,3360.7,0.00170527]
[1642263229659,3.68653126,3361.0,3360.7,0.74543527]
[1642263229862,4.41806826,3361.0,3360.7,0.74543527]
[1642263230161,4.41806826,3361.0,3360.8,0.00113685]
[1642263230762,4.41806826,3361.0,3360.8,1.46591198]
[1642263231014,0.045463,3360.9,3360.8,7.06429976]
[1642263231207,0.045463,3360.9,3360.8,5.59952463]
[1642263232008,0.045463,3360.9,3360.8,3.28976125]
[1642263232208,5.93950398,3361.0,3360.8,3.28976125]
[1642263232409,4.41806826,3361.0,3360.8,3.28976125]
[1642263232910,4.41806826,3361.0,3360.8,5.59952463]
[1642263233119,5.19506826,3361.0,3360.8,5.59952463]
[1642263233511,1.21081069,3360.9,3360.8,5.59952463]
[1642263234311,2.55329758,3360.9,3360.8,5.59952463]
[1642263234755,2.50783458,3360.9,3360.8,3.05463023]
[1642263234957,1.16534769,3360.9,3360.8,0.00113685]
[1642263235158,1.21081069,3360.9,3360.8,0.00113685]
[1642263235558,1.21081069,3360.9,3360.8,2.54603125]
[1642263235559,1.16534769,3360.9,3360.8,2.54603125]
[1642263236356,1.16534769,3360.9,3360.8,0.00113685]
[1642263236357,1.98781069,3360.9,3360.8,0.00113685]
[1642263237061,1.98781069,3360.9,3360.8,1.52128052]
[1642263237257,1.94234769,3360.9,3360.8,1.52128052]
[1642263237461,3.85836435,3360.9,3360.8,1.52128052]
[1642263237657,1.98781069,3360.9,3360.8,1.52128052]
[1642263237857,1.98781069,3360.9,3360.8,0.00113685]
[1642263237858,3.8626158,3360.9,3360.8,0.00113685]
[1642263238059,1.98781069,3360.9,3360.8,0.00113685]
[1642263239103,1.94234769,3360.9,3360.8,0.00113685]
[1642263239304,1.98781069,3360.9,3360.8,0.00113685]
[1642263239606,4.66367825,3360.9,3360.8,2.54603125]
[1642263240405,4.66367825,3360.9,3360.8,0.00113685]
[1642263240811,4.66367825,3360.9,3360.6,0.00227369]
[1642263241007,0.045463,3360.7,3360.6,0.00227369]